Cogmind - Beta 11.1 @@@ ROGUE MODE // 2022.07.04 @ 03:47:10 Player: fard Result: Destroyed by W1-DM0 with Makeshift Shrapnel Gun Performance ------------- Evolutions (1) 500 Regions Visited (4) 800 Robots Destroyed (70) 350 Value Destroyed (1539) 1539 Prototype IDs (5) 100 Alien Tech Used (0) 0 Bonus (204) 204 TOTAL SCORE: 3493 Bonus ------- High Alert Combat Kills 141 Follower Combat Kills 98 Friendly Fire -35 Cogmind --------- Core Integrity 0/400 Matter 216/300 Energy 100/100 System Corruption 16% Temperature Cool (80) Movement Core (50) Location -9/Exiles Parts ------- > --- POWER (1) -------- (None) > --- PROPULSION (2) --- (None) > --- UTILITY (3) ------ (None) > --- WEAPON (3) ------- (None) > --- INVENTORY (5) ---- Grenade Launcher Rocket Launcher Datajack Peak State ------------ > --- POWER ------------ Improved Ion Engine > --- PROPULSION ------- Light Treads Light Treads > --- UTILITY ---------- Cryofiber Web Trap Scanner Core Shielding > --- WEAPON ----------- Heavy EM Shotgun Heavy EM Shotgun Heavy EM Shotgun > --- INVENTORY -------- Hacking Suite Grenade Launcher Rocket Launcher Mace Mace [Rating: 24] Favorites ----------- Power Improved Ion Engine Engine Improved Ion Engine Propulsion Aluminum Leg Treads Light Treads Leg Aluminum Leg Hover Unit Hover Unit Flight Unit Flight Unit Utility Core Shielding Device Cryofiber Web Storage Small Storage Unit Hackware Hacking Suite Protection Core Shielding Weapon EM Pulse Gun Energy Gun EM Pulse Gun Ballistic Gun Heavy Assault Rifle Launcher Grenade Launcher Special Weapon Mining Laser Impact Weapon Mace Build | -11 -10 -9 -9 -9 ------- Run | Scr Mat Mat Min Exi Slots Evolved 2 | . . 2 . . Power . | . . . . . Propulsion . | . . . . . Utility 1 | . . 1 . . Weapon 1 | . . 1 . . Parts Attached 98 | 9 10 64 15 . Power 12 | 1 . 9 2 . Engine 12 | 1 . 9 2 . Core . | . . . . . Reactor . | . . . . . Propulsion 24 | 2 2 16 4 . Treads 4 | 2 . 2 . . Leg 8 | . 2 4 2 . Wheel . | . . . . . Hover 10 | . . 10 . . Flight 2 | . . . 2 . Utility 20 | 2 4 10 4 . Device 9 | 1 2 5 1 . Storage 3 | 1 2 . . . Processor . | . . . . . Hackware 1 | . . 1 . . Protection 7 | . . 4 3 . Artifact . | . . . . . Weapon 42 | 4 4 29 5 . Energy Gun 21 | 2 2 14 3 . Energy Cannon . | . . . . . Ballistic Gun 3 | 1 . 2 . . Ballistic Cannon . | . . . . . Launcher 10 | . 1 9 . . Special Weapon 2 | 1 1 . . . Impact Weapon 6 | . . 4 2 . Slashing Weapon . | . . . . . Piercing Weapon . | . . . . . Special Melee Weapon . | . . . . . Unidentified Prototypes 3 | . . 3 . . Parts Lost 19 | . . 14 . 5 Power 2 | . . 2 . . Propulsion 6 | . . 4 . 2 Utility 6 | . . 4 . 2 Weapon 5 | . . 4 . 1 Highest Loss Streak 5 | . . 5 . 5 To Critical Strikes . | . . . . . Average Slot Usage (%) 92 | . 98 89 97 99 Engine 10 | . 14 10 10 11 Treads 3 | . 19 3 . . Leg 9 | . 8 5 21 22 Hover 5 | . . 7 . . Device 13 | . 14 14 10 11 Protection 16 | . . 16 21 21 Energy Gun 19 | . 19 19 21 22 Launcher 4 | . 5 5 . . Impact Weapon 6 | . . 5 10 11 Naked Turns 6 | . . . 5 1 Heaviest Build 28 | 13 15 23 28 27 Greatest Support 40 | 40 40 40 20 20 Greatest Overweight (x) 6 | . . 6 5 1 Average Overweight (x) . | . . . . . Largest Inventory Capacity 20 | 8 20 8 5 5 Average Capacity 5 | 7 8 5 5 5 Most Carried 8 | 7 8 8 5 3 Average Carried 4 | 5 7 4 3 3 Final Capacity 8 | 8 8 5 5 5 Final Carried 6 | 6 6 3 3 3 Class Distribution -------------------- 71% | Mutant 17% | Tank 6% | Scavenger-Tank 4% | Scavenger-Mutant Dominant Class ---------------- Mutant | -10/Materials Mutant | -9/Materials Mutant | -9/Mines Mutant | -9/Exiles Resources | -11 -10 -9 -9 -9 ----------- Run | Scr Mat Mat Min Exi Matter Collected 1298 | 290 . 840 168 . Remotely . | . . . . . Salvage Created 2139 | 83 32 1812 198 14 Parts 133 | 9 6 108 10 . Haulers Intercepted 1 | . . 1 . . Recyclers Shooed . | . . . . . Parts Field Recycled . | . . . . . Retrieved Matter . | . . . . . Parts Self-Destructed . | . . . . . Prevented . | . . . . . Kills | -11 -10 -9 -9 -9 ------- Run | Scr Mat Mat Min Exi Combat Hostiles Destroyed 38 | . 2 33 3 . Melee 2 | . . 2 . . Guns 24 | . . 22 2 . Cannons 1 | . 1 . . . AOE 9 | . 1 7 1 . Classes Destroyed 12 | 1 2 8 . 1 Worker 10 | . . 9 1 . Builder 6 | . 1 5 . . Tunneler 6 | 4 . . 2 . Hauler 1 | . . 1 . . Recycler 1 | . . 1 . . Operator 2 | . . 2 . . Watcher 5 | . . 5 . . Swarmer 7 | . . 7 . . Grunt 22 | . 2 17 3 . Duelist 1 | . . 1 . . Sentry 8 | . . 8 . . Zionite 1 | . . . . 1 Best Kill Streak 4 | 2 3 4 2 . Combat Bots Only 4 | . 2 4 2 . Max Kills in Single Turn 2 | 1 1 2 1 1 Gunslinging . | . . . . . Exploded 2 | . 1 2 1 . Melee 1 | . . 1 . . Uniques/NPCs Destroyed . | . . . . . Combat | -11 -10 -9 -9 -9 -------- Run | Scr Mat Mat Min Exi Damage Taken 2431 | . 329 1367 177 558 Core 513 | . 100 155 33 225 Absorbed by Shields 211 | . . 211 . . Redirected to Shielding 51 | . . 28 7 16 Regen/Repaired (Parts) 59 | . . 59 . . Core Remaining (%) 80 | 100 60 . . . Volleys Fired 133 | 39 14 72 6 2 Largest 3 | 2 2 3 2 2 Hottest 195 | 140 140 195 113 108 Shots Fired 287 | 46 27 198 12 4 Gun 257 | 27 18 196 12 4 Cannon . | . . . . . Launcher 8 | . 6 2 . . Special 22 | 19 3 . . . Kinetic . | . . . . . Thermal 89 | 45 13 27 1 3 Explosive 8 | . 6 2 . . Electromagnetic 190 | 1 8 169 11 1 Robot Hit Streak 14 | 2 5 14 3 4 Robot Miss Streak 4 | 3 4 4 2 1 Penetration Max . | . . . . . Secondary Targets 3 | . . 3 . . Max Gunslinging Chain 1 | . . 1 . . Shots Hit Robots 178 | 7 15 141 12 3 Core Hits 93 | 4 11 69 7 2 Critical Kills . | . . . . . Critical Parts Destroyed 3 | . . 2 1 . Critical Strikes 8 | . . 7 1 . Burn 1 | . . 1 . . Corrupt 4 | . . 4 . . Smash 3 | . . 2 1 . Melee Attacks 52 | . . 44 8 . Impact 52 | . . 44 8 . Slashing . | . . . . . Piercing . | . . . . . Sneak Attacks 14 | . . 12 2 . Combat Hostiles . | . . . . . Follow-up Attacks . | . . . . . Damage Inflicted 4407 | 78 442 3427 390 70 Guns 2050 | 78 134 1634 140 64 Cannons . | . . . . . Explosions 1083 | . 260 708 115 . Melee 1220 | . . 1085 135 . Ramming 6 | . . . . 6 Kinetic . | . . . . . Thermal 1244 | 78 111 889 115 51 Explosive 269 | . 260 9 . . Electromagnetic 1668 | . 71 1444 140 13 Impact 1220 | . . 1085 135 . Slashing . | . . . . . Piercing . | . . . . . Highest Corruption 16 | . . 11 11 16 Average Corruption 10 | . . 9 11 11 Corruption Purged . | . . . . . Corruption Blocked . | . . . . . Effects 81 | . . 28 38 15 Message Errors 19 | . . 9 7 3 Matter Fused 19 | . . 6 10 3 Heat Flow Errors 19 | . . 4 10 5 Energy Discharges 10 | . . 3 5 2 Data Loss (minor) 6 | . . 2 4 . Data Loss (major) 5 | . . 3 1 1 Misfires 1 | . . . . 1 Misdirections 2 | . . 1 1 . Overload Shots . | . . . . . Overflow Damage 458 | . 5 391 62 . Projectiles . | . . . . . Explosions 11 | . 5 . 6 . Melee 447 | . . 391 56 . Knockbacks 3 | . . 3 . . Impact 3 | . . 3 . . Kinetic . | . . . . . Secondary . | . . . . . Self-Inflicted Damage 309 | . 82 224 . 3 Shots 12 | . 4 8 . . Rammed 1 | . . . . 1 Targets Rammed 1 | . . . . 1 Kicked . | . . . . . Crushed . | . . . . . Highest Temperature 537 | 240 232 537 220 136 Average Temperature 104 | 78 73 121 79 51 Received Heat Transfer 603 | . 159 399 45 . Effects 12 | 3 1 8 . . Shutdowns 2 | . . 2 . . Energy Bleed 1 | . 1 . . . Interference 8 | 3 . 5 . . Damage (minor) 1 | . . 1 . . Siege Activations . | . . . . . Robots Corrupted 2 | . . 1 . 1 Combat Hostiles 1 | . . 1 . . Parts Fried 16 | . . 14 2 . Impact Corruptions 18 | . . 17 1 . Robots Melted . | . . . . . Combat Hostiles . | . . . . . Parts Melted . | . . . . . Heat Transferred 2054 | 175 250 1418 100 111 Parts Sabotaged . | . . . . . Parts Stolen . | . . . . . Parts Stripped . | . . . . . Power Chain Reactions 11 | . . 9 2 . Missiles Intercepted . | . . . . . Alert | -11 -10 -9 -9 -9 ------- Run | Scr Mat Mat Min Exi Peak Influence 678 | 20 211 678 191 . Initial 186 | . . 89 186 . Average 330 | 7 121 473 136 . Maximum Alert Level 2 | . 1 2 . . Low Security (%) 41 | 100 50 10 100 . Level 1 8 | . 49 9 . . Level 2 49 | . . 79 . . Level 3 . | . . . . . Level 4 . | . . . . . Level 5 . | . . . . . High Security . | . . . . . Max Security . | . . . . . Squads Dispatched 6 | . . 6 . . Investigation 4 | . . 4 . . Extermination . | . . . . . Reinforcement 1 | . . 1 . . Assault 1 | . . 1 . . Garrison . | . . . . . Intercept . | . . . . . Searches Triggered . | . . . . . Construction Impeded . | . . . . . Haulers Reinforced . | . . . . . Active Scanning Responses . | . . . . . Cargo Convoy Interrupts . | . . . . . Stealth | -11 -10 -9 -9 -9 --------- Run | Scr Mat Mat Min Exi Distress Signals 3 | . . 3 . . Communications Jammed . | . . . . . Distress Signals . | . . . . . Times Spotted 74 | . 4 51 8 11 Peak Tracking Total 14 | . 4 5 3 14 Tactical Retreats 8 | . . 8 . . Traps | -11 -10 -9 -9 -9 ------- Run | Scr Mat Mat Min Exi Traps Triggered 1 | . . 1 . . Indirectly . | . . . . . Trap Hack Attempts . | . . . . . Triggered . | . . . . . Disarmed . | . . . . . Reprogrammed . | . . . . . Reused . | . . . . . Traps Extracted . | . . . . . Installed . | . . . . . Triggered . | . . . . . Machines | -11 -10 -9 -9 -9 ---------- Run | Scr Mat Mat Min Exi Machines Disabled 6 | . 1 5 . . Max in Single Turn 1 | . 1 1 . . Machines Sabotaged . | . . . . . Garrisons Compromised . | . . . . . Overloaded Fab Kills . | . . . . . Hacking | -11 -10 -9 -9 -9 --------- Run | Scr Mat Mat Min Exi Machines Accessed 10 | . 2 8 . . Terminals 7 | . 1 6 . . Fabricators . | . . . . . Repair Stations 1 | . . 1 . . Recycling Units 2 | . 1 1 . . Scanalyzers . | . . . . . Garrison Access . | . . . . . Total Hacks 41 | . 6 35 . . Successful 29 | . 6 23 . . Failed 10 | . . 10 . . Catastrophic 1 | . . 1 . . Database Lockouts 2 | . . 2 . . Manual . | . . . . . Terminals 31 | . 4 27 . . Fabricators . | . . . . . Repair Stations 7 | . . 7 . . Recycling Units 3 | . 2 1 . . Scanalyzers . | . . . . . Garrison Access . | . . . . . Terminal Hacks 20 | . 4 16 . . Record 11 | . 2 9 . . Prototype ID Bank 1 | . . 1 . . Emergency Access Points 2 | . 1 1 . . Alert Level 3 | . 1 2 . . Unreport Threat 2 | . . 2 . . Locate Traps 1 | . . 1 . . Fabricator Hacks . | . . . . . Repair Station Hacks 6 | . . 6 . . Scan Component 3 | . . 3 . . Repair 2 | . . 2 . . Refit 1 | . . 1 . . Recycling Unit Hacks 3 | . 2 1 . . Process 1 | . 1 . . . Report Inventory 2 | . 1 1 . . Scanalyzer . | . . . . . Garrison Access Hacks . | . . . . . Unauthorized Hacks . | . . . . . Terminals . | . . . . . Fabricators . | . . . . . Repair Stations . | . . . . . Recycling Units . | . . . . . Scanalyzers . | . . . . . Garrison Access . | . . . . . Data Cores Recovered . | . . . . . Used . | . . . . . Hacking Detections 8 | . 1 7 . . Full Trace Events 4 | . . 4 . . Feedback Events 1 | . . 1 . . Corruption 1 | . . 1 . . Feedback Blocked . | . . . . . Robot Schematics Acquired . | . . . . . Robots Built . | . . . . . Authchips . | . . . . . Time . | . . . . . Total Robot Build Rating . | . . . . . Part Schematics Acquired . | . . . . . Parts Built . | . . . . . Authchips . | . . . . . Time . | . . . . . Total Part Build Rating . | . . . . . Parts Repaired 2 | . . 2 . . Time 58 | . . 58 . . Parts Recycled . | . . . . . Recycled Matter 330 | . 330 . . . Retrieved Matter . | . . . . . Retrieved Components . | . . . . . Parts Scanalyzed . | . . . . . Part Schematics Acquired . | . . . . . Parts Damaged . | . . . . . Bothacking | -11 -10 -9 -9 -9 ------------ Run | Scr Mat Mat Min Exi Used RIF Installer . | . . . . . Robots Hacked . | . . . . . Non-combat . | . . . . . Combat . | . . . . . Robot Hacks Applied . | . . . . . Relay Couplers Released . | . . . . . Fabnet Peak Effective % . | . . . . . Robots Rewired . | . . . . . Allies Hacked . | . . . . . Hacks Repelled . | . . . . . Allies | -11 -10 -9 -9 -9 -------- Run | Scr Mat Mat Min Exi Total Allies 2 | . . . 2 . Largest Group 2 | . . . 2 2 Highest-Rated Group 43 | . . . 43 43 Highest-Rated Ally 31 | . . . 31 31 Total Orders . | . . . . . Ally Attacks 24 | . . . 24 . Total Damage 376 | . . . 376 . Kills 6 | . . . 6 . Allies Corrupted . | . . . . . Allies Melted . | . . . . . Intel | -11 -10 -9 -9 -9 ------- Run | Scr Mat Mat Min Exi Robot Analysis Total . | . . . . . Derelict Logs Recovered 2 | . . . 2 . Drone Launches . | . . . . . Drone Recoveries . | . . . . . Exploration | -11 -10 -9 -9 -9 ------------- Run | Scr Mat Mat Min Exi Turns Passed 5955 | 675 279 3506 1147 348 Spaces Moved 3068 | 243 148 1926 570 181 Core 309 | 14 . 284 11 . Treads 673 | 229 87 357 . . Legs 1236 | . 61 454 540 181 Wheels . | . . . . . Hover 831 | . . 831 . . Flight 19 | . . . 19 . Fastest Speed 37 | 50 120 50 37 120 Average Speed 153 | 153 143 142 182 188 Slowest Speed 350 | 160 160 350 300 190 Overloaded Moves . | . . . . . Propulsion Burnouts . | . . . . . Robots Hopped . | . . . . . Cave-ins Triggered . | . . . . . Exploration Rate (%) 53 | 13 27 82 96 48 Regions Visited 4 Branch Regions 2 Pre-discovered Areas . | . . . . . Known Exits Taken . | . . . . . Unknown Exits Taken 4 | 1 1 1 1 . Scrap Searched 3 | . . . 3 . Spaces Dug 19 | 7 . 12 . . Terrain Destroyed 117 | 13 38 58 8 . Melee 12 | . . 12 . . Projectile 13 | 13 . . . . AOE 92 | . 38 46 8 . Terrain Rammed . | . . . . . Walls Destroyed . | . . . . . Machines Disabled . | . . . . . Actions | -11 -10 -9 -9 -9 --------- Run | Scr Mat Mat Min Exi Total 3965 | 462 182 2487 650 184 Wait 470 | 156 . 275 39 . Move 3064 | 242 147 1925 569 181 Hop . | . . . . . Pick Up 76 | 14 4 49 9 . Fast Attach 23 | . 2 17 4 . Attach 68 | 9 4 44 11 . Detach 8 | 1 1 4 2 . Swap 8 | . 4 4 . . Drop 62 | 1 6 53 2 . Fire 133 | 39 14 72 6 2 Melee 52 | . . 44 8 . Ram 1 | . . . . 1 Kick . | . . . . . Crush . | . . . . . Escape Stasis . | . . . . . Rewire . | . . . . . Trap . | . . . . . Miscellaneous . | . . . . . Route ------- -11/Scrapyard -10/Materials -9/Materials (discovered 3 exits: [*Mat x2] / [*Min]) -9/Mines (discovered 3 exits: [*Mat x2] / [*Exi]) -9/Exiles (discovered 1 exit: [*Min]) History --------- Turn | Location | Event 3 | -11/Scrapyard | Discovered new exit (range 16) 676 | -11/Scrapyard | Entered Materials 677 | -10/Materials | Build established: Mutant 944 | -10/Materials | Discovered new exit (range 6) 955 | -10/Materials | Entered another Materials area 955 | -9/Materials | Evolved 2 slots: Utility x1, Weapon x1 1303 | -9/Materials | Build established: Tank 1557 | -9/Materials | Discovered new exit (range 8) 1971 | -9/Materials | Repaired EM Pulse Gun 2003 | -9/Materials | Repaired Imp. Ion Engine 2341 | -9/Materials | Lost 3 parts (1n2u) 2599 | -9/Materials | Build established: Mutant 2790 | -9/Materials | Discovered new exit (range 7) 3438 | -9/Materials | Discovered new exit (range 14) 3730 | -9/Materials | Central database locked down 3730 | -9/Materials | Central database locked down 3755 | -9/Materials | First assault squad dispatched 3827 | -9/Materials | System corruption reached 10% 3857 | -9/Materials | Lost 5 parts (1p2n1u1w) 4461 | -9/Materials | Entered Mines 4653 | -9/Mines | Discovered new exit (range 9) 4890 | -9/Mines | Learned Materials stockpile data 4992 | -9/Mines | Learned 8 Materials zone layouts 5326 | -9/Mines | Released all parts (9) 5341 | -9/Mines | Released all parts (2) 5535 | -9/Mines | Discovered new exit (range 9) 5600 | -9/Mines | Deemed a non-threat by the Exiles lab entrance 5600 | -9/Mines | Discovered new exit (range 5) 5608 | -9/Mines | Entered Exiles 5608 | -9/Exiles | Accompanied by 2 allies 5638 | -9/Exiles | Led the pair of lost Derelicts to a safe place 5646 | -9/Exiles | Discovered new exit (range 14) 5702 | -9/Exiles | Met 8R-AWN 5732 | -9/Exiles | Met EX-HEX 5876 | -9/Exiles | Met EX-DEC 5919 | -9/Exiles | Visited The Gauntlet 5932 | -9/Exiles | Attacked by the Exiles 5935 | -9/Exiles | Core integrity fell below 50% 5955 | -9/Exiles | Released all parts (4) 5956 | -9/Exiles | Core integrity fell below 20% 5956 | -9/Exiles | Destroyed by W1-DM0 with Makeshift Shrapnel Gun Last Messages --------------- time, folks! 05946_ GG-YGF(z) knocked back. 05947_ Med. Armor Plating destroyed. 05950_ DK-RAY destroyed. 05950_ GG-YGF(z) system corrupted by crushing effect. 05951_ GG-YGF(z) system terminally corrupted. [Achievement: Backstab] 05951_ Knocked back. 05952_ Hvy. EM Pulse Gun destroyed. 05952_ Aluminum Leg destroyed. 05952_ 5L-KAT destroyed. 05953_ Core Shielding destroyed. 05955_ System corrupted: Heat flow error (+133). 05955_ EX-BIN: "I just want to science!" 05955_ Aluminum Leg destroyed. 05955_ Released Field Laser. 05955_ Released Rnf. Ion Engine. 05955_ Released Mace. 05955_ Released Cryofiber Web. 05955_ Slammed into as-35774. Map ----- +----------------------------------------------------+ | ??????????????? ?????????####""" | | ??????????????"" ""????????????##""" | | ??????????????" """?????????????#"""" | | ?????????????"" ""????????????##"" | | ?????????????" ########??####"""" | | ?????????????"" ## ####""" | | ?????????????" """" | | ?????????????"" | | ????????????#"""" | | ?????????????# | | ?????????????#" " "" | | ?????????????#"""" ""## ##""" " " | | ?????????????#"" ""#### ######""" " | | ?????????????#" """"##??# #????###""" | | ?????????????#""" c """#??## ####???#### | | ??????????????# ""##??#! "!#??????? | | ??????????????#"" aa"""##???#" !#??????? | | ??????????????##""" ##????#" "#??????? | | ???????????????##"""" c ##?????#!!""!"#??????? | | ????????????????### a #??????########??????? | | ??????????????????##### a##????????????????????? | | ??????????????????????## #?????????????????????? | | ???????????????????????# #?????????????????????? | | ???????????????????????# #?????????????????????? | | ???????????????????????# a=#?????????????????????? | | ???????????????????????#a@a#?????????????????????? | | ???????????????????????# [!#?????????????????????? | | ???????????????????????# / #?????????????????????? | | ?????????????" ???????# z #?????????????????????? | | ?????????????"" ??????# #?????????????????????? | | ?????????????"" ?????# z#?????????????????????? | | ????????????###"""###### #######???????????????? | | ???????????"""" """"""c% """""""#??????????????? | | ????????"""""" "#""????????????? | | ?????? " ???????????? | | ?????? " "???????????? | | ?????? " "???????????? | | ?????? "" #""????????????? | | ???????" """"" " """" """""#??????????????? | | ???????????"###"""########"""######??????????????? | | ?????????????"" ???????? ""??????????????????? | | ?????????????""??????????? """??????????????????? | | ??????????????????????????"""""??????????????????? | | ?????????????????????????? """???????????????????? | | ?????????????????????????????????????????????????? | | ?????????????????????????????????????????????????? | | ?????????????????????????????????????????????????? | | ?????????????????????????????????????????????????? | | ?????????????????????????????????????????????????? | | ?????????????????????????????????????????????????? | +----------------------------------------------------+ Best States ------------- Heat Dissipation 38 Energy Generation 12 Energy Capacity 265 Matter Stores 300 Matter Capacity 300 Sight Range 16 Terrain Scan Range 14 Terrain Scan Density 10 Base Temperature (-) 100 Armor Coverage 225 Core Shielding 20 Evasion (%) 56 Recoil Reduction 2 Offensive Hacking 10 Item Schematics ----------------- None Robot Schematics ------------------ None Fabricated ------------ Nothing Alien Tech Used ----------------- None Achievements -------------- Backstab Everything Is Under Control Librarian Novice Programmer Part-time Excavator Significant Disruption Challenges ------------ None Game ------ Seed ThiefDispersionFlamer Manual? 0 Play Time 01:12:51 Cumulative 4.3 hours Start 2022.07.04 @ 02:30:28 End 2022.07.04 @ 03:47:10 Sessions 1 Manual Loads 0 Difficulty Rogue Special Mode None Game No. 4 Rogue 4 Adventurer 0 Explorer 0 Win Type - Total 0 Types 0/0/0/0/0/0/0/0/0 Lore% 6 Gallery% 7 Achievement% 8 Wizard Run 0 Options --------- ASCII 0 Keyboard 0 Movement Mouse Keybinds 0 Fullscreen 1 Font 18/SmallcapsGlow Map View 76x50 Tactical HUD 1 Map Filters NONE Filters NONE Steam 1 RUN: ea7f66a7-651a-4484-9597-031ba8a32f57